Cogmind - Beta 12 @@@ ROGUE MODE // 2023.06.05 @ 23:55:08 Player: Mr Goldstein Result: Self-destructed Performance ------------- Evolutions (1) 500 Regions Visited (3) 600 Robots Destroyed (14) 70 Value Destroyed (391) 391 Prototype IDs (1) 20 Alien Tech Used (0) 0 Bonus (-394) -394 TOTAL SCORE: 1187 Bonus ------- High Alert Combat Kills 47 Follower Combat Kills 60 Friendly Fire -501 Cogmind --------- Core Integrity 400/400 Matter 300/300 Energy 99/100 System Corruption 0% Temperature Cool (0) Movement Core (50) Location -9/Materials Parts ------- > --- POWER (1) -------- (None) > --- PROPULSION (3) --- (None) > --- UTILITY (3) ------ (None) > --- WEAPON (2) ------- Grenade Launcher > --- INVENTORY (5) ---- Small Storage Unit Experimental Sensor Array Light Armor Plating Grenade Launcher Mining Claw Peak State ------------ > --- POWER ------------ (None) > --- PROPULSION ------- (None) > --- UTILITY ---------- Experimental Sensor Array > --- WEAPON ----------- Grenade Launcher > --- INVENTORY -------- Small Storage Unit Light Armor Plating [Rating: 10] Favorites ----------- Power None Propulsion Flight Unit Flight Unit Flight Unit Utility Experimental Sensor Array Device Experimental Sensor Array Weapon Grenade Launcher Launcher Grenade Launcher Special Weapon Mining Laser Slashing Weapon Mining Claw Build | -11 -10 -10 -9 ------- Run | Jun Mat Min Mat Slots Evolved 2 | . . . 2 Power . | . . . . Propulsion 1 | . . . 1 Utility 1 | . . . 1 Weapon . | . . . . Parts Attached 6 | . 1 5 . Power . | . . . . Engine . | . . . . Core . | . . . . Reactor . | . . . . Propulsion 1 | . . 1 . Treads . | . . . . Leg . | . . . . Wheel . | . . . . Hover . | . . . . Flight 1 | . . 1 . Utility 1 | . . 1 . Device 1 | . . 1 . Storage . | . . . . Processor . | . . . . Hackware . | . . . . Protection . | . . . . Artifact . | . . . . Weapon 4 | . 1 3 . Energy Gun . | . . . . Energy Cannon . | . . . . Ballistic Gun . | . . . . Ballistic Cannon . | . . . . Launcher 2 | . 1 1 . Special Weapon 1 | . . 1 . Impact Weapon . | . . . . Slashing Weapon 1 | . . 1 . Piercing Weapon . | . . . . Special Melee Weapon . | . . . . Unidentified Prototypes 1 | . . 1 . Parts Lost 1 | . . 1 . Power . | . . . . Propulsion 1 | . . 1 . Utility . | . . . . Weapon . | . . . . Highest Loss Streak 1 | . . 1 . To Critical Strikes . | . . . . Average Slot Usage (%) 18 | . 9 19 . Flight 4 | . . 5 . Launcher 12 | . 9 12 . Naked Turns 35 | . 35 . . Heaviest Build 4 | . 3 4 3 Greatest Support 4 | 3 3 4 3 Greatest Overweight (x) . | . . . . Average Overweight (x) . | . . . . Largest Inventory Capacity 5 | 5 5 5 5 Average Capacity 5 | 5 5 5 5 Most Carried 5 | 1 2 5 5 Average Carried 3 | . 1 4 5 Final Capacity 5 | 5 5 5 5 Final Carried 5 | 1 2 5 5 Class Distribution -------------------- 100% | Mutant Dominant Class ---------------- Mutant | -10/Materials Mutant | -10/Mines Mutant | -9/Materials Resources | -11 -10 -10 -9 ----------- Run | Jun Mat Min Mat Matter Collected 410 | 200 20 149 41 Remotely . | . . . . Salvage Created 216 | . 24 192 . Parts 15 | . 1 14 . Haulers Intercepted . | . . . . Recyclers Shooed . | . . . . Parts Field Recycled . | . . . . Retrieved Matter . | . . . . Parts Self-Destructed . | . . . . Prevented . | . . . . Kills | -11 -10 -10 -9 ------- Run | Jun Mat Min Mat Combat Hostiles Destroyed 11 | . 1 10 . AOE 11 | . 1 10 . Classes Destroyed 4 | . 1 3 . Worker 1 | . . 1 . Tunneler 2 | . . 2 . Swarmer 6 | . . 6 . Grunt 5 | . 1 4 . Best Kill Streak 3 | . 1 3 . Combat Bots Only 3 | . 1 3 . Max Kills in Single Turn 3 | . 1 3 . Gunslinging . | . . . . Exploded 3 | . 1 3 . Melee . | . . . . Uniques/NPCs Destroyed . | . . . . Combat | -11 -10 -10 -9 -------- Run | Jun Mat Min Mat Damage Taken 190 | . 30 160 . Core 139 | . 30 109 . Absorbed by Shields . | . . . . Core Remaining (%) 72 | 100 . 44 . Volleys Fired 15 | . 1 14 . Largest 1 | . 1 1 . Hottest 30 | . 30 30 . Shots Fired 15 | . 1 14 . Gun . | . . . . Cannon . | . . . . Launcher 15 | . 1 14 . Special . | . . . . Kinetic . | . . . . Thermal . | . . . . Explosive 15 | . 1 14 . Electromagnetic . | . . . . Robot Hit Streak . | . . . . Robot Miss Streak 1 | . . 1 . Penetration Max . | . . . . Secondary Targets . | . . . . Shots Hit Robots 5 | . . 5 . Core Hits 19 | . 1 18 . Critical Kills . | . . . . Critical Parts Destroyed . | . . . . Critical Strikes . | . . . . Melee Attacks 5 | . . 5 . Impact . | . . . . Slashing 5 | . . 5 . Piercing . | . . . . Sneak Attacks 5 | . . 5 . Combat Hostiles . | . . . . Follow-up Attacks . | . . . . Damage Inflicted 1082 | . 37 1045 . Guns . | . . . . Cannons . | . . . . Explosions 825 | . 33 792 . Melee 253 | . . 253 . Ramming 4 | . 4 . . Kinetic . | . . . . Thermal 212 | . . 212 . Explosive 613 | . 33 580 . Electromagnetic . | . . . . Impact . | . . . . Slashing 253 | . . 253 . Piercing . | . . . . Highest Corruption . | . . . . Average Corruption . | . . . . Corruption Purged . | . . . . Corruption Blocked . | . . . . Overload Shots . | . . . . Overflow Damage 103 | . . 103 . Projectiles . | . . . . Explosions 69 | . . 69 . Melee 34 | . . 34 . Knockbacks . | . . . . Impact . | . . . . Kinetic . | . . . . Secondary . | . . . . Self-Inflicted Damage 71 | . 2 69 . Shots 2 | . . 2 . Rammed 2 | . 2 . . Targets Rammed 2 | . 2 . . Kicked . | . . . . Crushed . | . . . . Highest Temperature . | . . . . Average Temperature . | . . . . Received Heat Transfer 48 | . 6 42 . Siege Activations . | . . . . Robots Corrupted . | . . . . Combat Hostiles . | . . . . Parts Fried . | . . . . Impact Corruptions . | . . . . Robots Melted . | . . . . Combat Hostiles . | . . . . Parts Melted . | . . . . Heat Transferred 250 | . . 250 . Parts Sabotaged . | . . . . Parts Stolen . | . . . . Parts Stripped . | . . . . Power Chain Reactions . | . . . . Missiles Intercepted . | . . . . Alert | -11 -10 -10 -9 ------- Run | Jun Mat Min Mat Peak Influence 731 | . 189 731 222 Initial 222 | . . 73 222 Average 369 | . 97 443 222 Maximum Alert Level 3 | . . 3 1 Low Security (%) 30 | 100 100 13 . Level 1 29 | . . 36 100 Level 2 39 | . . 49 . Level 3 . | . . . . Level 4 . | . . . . Level 5 . | . . . . High Security . | . . . . Max Security . | . . . . Squads Dispatched 1 | . 1 . . Investigation 1 | . 1 . . Extermination . | . . . . Reinforcement . | . . . . Assault . | . . . . Garrison . | . . . . Intercept . | . . . . Searches Triggered . | . . . . Construction Impeded . | . . . . Haulers Reinforced . | . . . . Active Scanning Responses . | . . . . Cargo Convoy Interrupts . | . . . . Stealth | -11 -10 -10 -9 --------- Run | Jun Mat Min Mat Distress Signals . | . . . . Communications Jammed . | . . . . Distress Signals . | . . . . Times Spotted 24 | . 7 17 . Peak Tracking Total 5 | . 5 4 . Tactical Retreats 4 | . 2 2 . Traps | -11 -10 -10 -9 ------- Run | Jun Mat Min Mat Traps Triggered . | . . . . Indirectly . | . . . . Trap Hack Attempts . | . . . . Triggered . | . . . . Disarmed . | . . . . Reprogrammed . | . . . . Reused . | . . . . Traps Extracted . | . . . . Installed . | . . . . Triggered . | . . . . Machines | -11 -10 -10 -9 ---------- Run | Jun Mat Min Mat Machines Disabled 12 | . . 12 . Max in Single Turn 10 | . . 10 . Machines Repaired . | . . . . Machines Sabotaged . | . . . . Overloaded Fab Kills . | . . . . Hacking | -11 -10 -10 -9 --------- Run | Jun Mat Min Mat Machines Accessed 3 | . 3 . . Terminals 2 | . 2 . . Fabricators . | . . . . Repair Stations . | . . . . Recycling Units 1 | . 1 . . Scanalyzers . | . . . . Garrison Access . | . . . . Total Hacks 8 | . 8 . . Successful 1 | . 1 . . Failed 7 | . 7 . . Catastrophic 2 | . 2 . . Database Lockouts . | . . . . Manual 8 | . 8 . . Terminals 7 | . 7 . . Fabricators . | . . . . Repair Stations . | . . . . Recycling Units 1 | . 1 . . Scanalyzers . | . . . . Garrison Access . | . . . . Terminal Hacks . | . . . . Fabricator Hacks . | . . . . Repair Station Hacks . | . . . . Recycling Unit Hacks . | . . . . Scanalyzer . | . . . . Garrison Access Hacks . | . . . . Unauthorized Hacks 1 | . 1 . . Terminals . | . . . . Fabricators . | . . . . Repair Stations . | . . . . Recycling Units 1 | . 1 . . Tunnel 1 | . 1 . . Scanalyzers . | . . . . Garrison Access . | . . . . Data Cores Recovered . | . . . . Used . | . . . . Hacking Detections 2 | . 2 . . Full Trace Events 2 | . 2 . . Feedback Events . | . . . . Feedback Blocked . | . . . . Robot Schematics Acquired . | . . . . Robots Built . | . . . . Authchips . | . . . . Time . | . . . . Total Robot Build Rating . | . . . . Part Schematics Acquired . | . . . . Parts Built . | . . . . Authchips . | . . . . Time . | . . . . Total Part Build Rating . | . . . . Parts Repaired . | . . . . Time . | . . . . Parts Recycled . | . . . . Recycled Matter . | . . . . Retrieved Matter . | . . . . Retrieved Components . | . . . . Parts Scanalyzed . | . . . . Part Schematics Acquired . | . . . . Parts Damaged . | . . . . Bothacking | -11 -10 -10 -9 ------------ Run | Jun Mat Min Mat Used RIF Installer . | . . . . Robots Hacked . | . . . . Non-combat . | . . . . Combat . | . . . . Robot Hacks Applied . | . . . . Relay Couplers Released . | . . . . Fabnet Peak Effective % . | . . . . Robots Rewired . | . . . . Allies Hacked . | . . . . Hacks Repelled . | . . . . Allies | -11 -10 -10 -9 -------- Run | Jun Mat Min Mat Total Allies 3 | . . 3 . Largest Group 3 | . . 3 3 Highest-Rated Group 40 | . . 40 40 Highest-Rated Ally 16 | . . 16 16 Total Orders . | . . . . Ally Attacks 9 | . . 9 . Total Damage 111 | . . 111 . Kills 2 | . . 2 . Allies Corrupted . | . . . . Allies Melted . | . . . . Intel | -11 -10 -10 -9 ------- Run | Jun Mat Min Mat Robot Analysis Total . | . . . . Derelict Logs Recovered 1 | . . 1 . Drone Launches . | . . . . Drone Recoveries . | . . . . Exploration | -11 -10 -10 -9 ------------- Run | Jun Mat Min Mat Turns Passed 604 | 23 97 479 5 Spaces Moved 972 | 43 127 793 9 Core 653 | 43 127 474 9 Treads . | . . . . Legs . | . . . . Wheels . | . . . . Hover . | . . . . Flight 319 | . . 319 . Fastest Speed 40 | 50 50 40 50 Average Speed 46 | 50 50 45 50 Slowest Speed 50 | 50 50 50 50 Overloaded Moves . | . . . . Propulsion Burnouts . | . . . . Robots Hopped 3 | . . 3 . Cave-ins Triggered . | . . . . Exploration Rate (%) 35 | 3 37 96 4 Regions Visited 3 Branch Regions 1 Pre-discovered Areas 2 | . 1 1 . Known Exits Taken . | . . . . Unknown Exits Taken 3 | 1 1 1 . Scrap Searched 1 | . . 1 . Spaces Dug 30 | . . 30 . Terrain Destroyed 122 | . 8 114 . Melee . | . . . . Projectile . | . . . . AOE 122 | . 8 114 . Terrain Rammed . | . . . . Walls Destroyed . | . . . . Machines Disabled . | . . . . Actions | -11 -10 -10 -9 --------- Run | Jun Mat Min Mat Total 1088 | 43 158 878 9 Wait 88 | . 27 61 . Move 963 | 42 126 786 9 Hop 3 | . . 3 . Pick Up 3 | 1 1 1 . Fast Attach 5 | . 1 4 . Attach . | . . . . Detach 2 | . . 2 . Swap 1 | . . 1 . Drop 1 | . . 1 . Fire 15 | . 1 14 . Melee 5 | . . 5 . Ram 2 | . 2 . . Kick . | . . . . Crush . | . . . . Escape Stasis . | . . . . Rewire . | . . . . Trap . | . . . . Miscellaneous . | . . . . Route ------- -11/Junkyard -10/Materials -10/Mines (discovered 3 exits: [*Mat x2] / [*Exi]) -9/Materials History --------- Turn | Location | Event 6 | -11/Junkyard | Discovered new exit (range 15) 24 | -11/Junkyard | Entered Materials 114 | -10/Materials | Discovered new exit (range 13) 121 | -10/Materials | Entered Mines 129 | -10/Mines | Found a damaged Exp. Sensor Array with a note attached 130 | -10/Mines | Found Prototype Device 130 | -10/Mines | Identified Exp. Sensor Array 135 | -10/Mines | Met a Derelict bent on vengeance 138 | -10/Mines | Found a hidden stash of uninstalled traps 209 | -10/Mines | Discovered new exit (range 8) 255 | -10/Mines | Discovered new exit (range 7) 257 | -10/Mines | YI-UF0 nonchalantly dropped a Grenade Launcher on the ground 303 | -10/Mines | Build established: Mutant 391 | -10/Mines | Learned location of Mines (-9) 416 | -10/Mines | Assisted by bots powering up and referring to "LRC-V3" 457 | -10/Mines | Core integrity fell below 50% 528 | -10/Mines | Discovered new exit (range 10) 537 | -10/Mines | Deemed a non-threat by the Exiles lab entrance 600 | -10/Mines | Entered Materials 600 | -9/Materials | Accompanied by 3 allies 600 | -9/Materials | Evolved 2 slots: Propulsion x1, Utility x1 605 | -9/Materials | Self-destructed Last Messages --------------- 00416_ Mercenary 1a: "Hello LRC-V3. What is your command?" 00416_ Trooper 1b: "Hello LRC-V3. What is your command?" 00419_ G-34 Mercenary destroyed. 00430_ K-01 Serf collects debris. 00456_ T-07 Excavator destroyed. 00457_ The unstable cave ceiling collapses. 00458_ K-01 Serf collects debris. 00472_ U-05 Engineer lays Concrete. 00475_ U-05 Engineer builds a Wall. 00517_ Core Extractor disabled. 00519_ G-34 Mercenary destroyed. 00521_ The unstable cave ceiling collapses. 00525_ G-47 Trooper destroyed. 00528_ EXIT=FOUND 00530_ Acquired 19 matter. 00537_ "No threat detected, you may enter." PARAMETERS=PROPULSION+1,UTILITY+1 LOCATION=UNKNOWN GOAL=ESCAPE 00605_ Acquired 41 matter. Map ----- +----------------------------------------------------+ | ??????????????????????????????????????? | | ??????????????????????????????????????? | | ?????????????????????????? ?????????? | | ?????????????????????????? ?????????? | | ????????????????????????? #????????? | | ?????????????????????????# #????????? | | ?????????????????????????# #????????? | | ?????????????????????????# #????????? | | ?????????????????????????# #????????? | | ?????????????????????????# #????????? | | ?????????????????????????# #????????? | | ?????????????????????????# #????????? | | ?????????????????????????# #????????? | | ?????????????????????????# #????????? | | ?????????????????????????# #????????? | | ???????????#?????????????# #????????? | | ??????????? ########## ##???????? | | ??????????# #???????? | | ???????????? T #???????? | | ??????????# #???????? | | ??????????? ########+######???????? | | ????????????????????# ####????? | | ????????????????????# "" #????? | | ????????????????????# """#????? | | ????????????????????# S"#????? | | ????????????????????# @ ####????? | | ????????????????????#!!! #???????? | | ????????????????????#!!! #???????? | | ????????????????????#!!! ! #???????? | | ????????????????????##" "######???????? | | ?????????????????????#"R"#????????????? | | ?????????????????????#"""?????????????? | | ?????????????????????####?????????????? | | ??????????????????????????????????????? | | ??????????????????????????????????????? | | ??????????????????????????????????????? | | ??????????????????????????????????????? | | ??????????????????????????????????????? | | ??????????????????????????????????????? | | ??????????????????????????????????????? | | ??????????????????????????????????????? | | ??????????????????????????????????????? | | ??????????????????????????????????????? | | ??????????????????????????????????????? | | ??????????????????????????????????????? | | ??????????????????????????????????????? | | ??????????????????????????????????????? | | ??????????????????????????????????????? | | ??????????????????????????????????????? | | ??????????????????????????????????????? | +----------------------------------------------------+ Best States ------------- Heat Dissipation 25 Energy Generation 5 Energy Capacity 100 Matter Stores 300 Matter Capacity 300 Sight Range 16 Terrain Scan Density 10 Evasion (%) 62 Item Schematics ----------------- None Robot Schematics ------------------ None Fabricated ------------ Nothing Alien Tech Used ----------------- None Achievements -------------- None Challenges ------------ None Game ------ Seed CooledBoreFemtoactuators Manual? 0 Play Time 00:05:28 Cumulative 275.3 hours Start 2023.06.05 @ 23:48:10 End 2023.06.05 @ 23:55:08 Sessions 1 Manual Loads 0 Difficulty Rogue Special Mode None Game No. 815 Rogue 815 Adventurer 0 Explorer 0 Win Type - Total 15 Types 8/0/5/2/0/0/0/0/0 Lore% 89 Gallery% 87 Achievement% 77 Wizard Run 0 Options --------- ASCII 0 Keyboard 0 Movement Numpad Keybinds 0 Fullscreen 1 Font 16/SmallcapsGlow Map View 75x55 Tactical HUD 1 Map Filters NONE Filters NONE Steam 1 RUN: e903906f-dda5-4d12-8aa8-fe6ae95e6452